bitfinex-derivatives/quotes_BNBF0:USTF0_20250608
["timestamp","ask_amount","ask_price","bid_price","bid_amount"]
[1749419642719,1.118,656.06,655.7,2.25235148]
[1749419642914,1.05149277,656.05,655.7,2.25235148]
[1749419643114,1.118,656.06,655.7,2.25235148]
[1749419643316,1.05171199,656.05,655.7,2.25235148]
[1749419643513,1.118,656.06,655.7,2.25235148]
[1749419643717,1.05171443,656.05,655.7,2.25235148]
[1749419643915,1.118,656.06,655.7,2.25235148]
[1749419644115,1.05171565,656.05,655.7,2.25235148]
[1749419644316,1.118,656.06,655.7,2.25235148]
[1749419644515,1.05171565,656.05,655.7,2.25235148]
[1749419644822,1.118,656.06,655.71,2.25235148]
[1749419645021,1.05172888,656.05,655.71,2.25235148]
[1749419645217,1.118,656.06,655.71,2.25235148]
[1749419645420,1.05172888,656.05,655.71,2.25235148]
[1749419645621,1.118,656.06,655.71,2.25235148]
[1749419645817,1.05173301,656.05,655.71,2.25235148]
[1749419646016,1.118,656.06,655.71,2.25235148]
[1749419646221,1.05173296,656.05,655.71,2.25235148]
[1749419646417,1.118,656.06,655.71,2.25235148]
[1749419646621,1.05173876,656.05,655.71,2.25235148]
[1749419646920,1.118,656.06,655.71,2.25235148]
[1749419647120,1.05173977,656.05,655.71,2.25235148]
[1749419647320,1.118,656.06,655.71,2.25235148]
[1749419647519,1.05183117,656.05,655.71,2.25235148]
[1749419647721,1.118,656.06,655.71,2.25235148]
[1749419648020,1.05183198,656.05,655.71,2.25235148]
[1749419648220,1.118,656.06,655.71,2.25235148]
[1749419648418,1.05183332,656.05,655.71,2.25235148]
[1749419648619,1.118,656.06,655.71,2.25235148]
[1749419648922,1.05183527,656.05,655.71,2.25235148]
[1749419649217,1.118,656.06,655.71,2.25235148]
[1749419649421,1.05183435,656.05,655.71,2.25235148]
[1749419649618,1.118,656.06,655.71,2.25235148]
[1749419649920,1.05183882,656.05,655.71,2.25235148]
[1749419650122,1.118,656.06,655.71,2.25235148]
[1749419650323,1.05183882,656.05,655.7,2.25235148]
[1749419650524,1.118,656.06,655.7,2.25235148]
[1749419650723,1.05886058,656.05,655.7,2.25235148]
[1749419650919,1.118,656.06,655.7,2.25235148]
[1749419651222,1.05886255,656.05,655.7,2.25235148]
[1749419651422,1.118,656.06,655.7,2.25235148]
[1749419651621,1.05886255,656.05,655.7,2.25235148]
[1749419651820,1.118,656.06,655.7,2.25235148]
[1749419652124,1.05886965,656.05,655.7,2.25235148]
[1749419652326,1.06080744,656.04,655.7,2.25235148]
[1749419652523,1.118,656.06,655.7,2.25235148]
[1749419652720,1.06080931,656.05,655.7,2.25235148]
[1749419652920,1.06080931,656.04,655.7,2.25235148]
[1749419653120,1.118,656.06,655.7,2.25235148]
[1749419653323,1.06081057,656.05,655.7,2.25235148]
[1749419653521,1.118,656.06,655.7,2.25235148]
[1749419653824,1.05891248,656.05,655.7,2.25235148]
[1749419654023,1.118,656.06,655.7,2.25235148]
[1749419654225,1.05891228,656.05,655.7,2.25235148]
[1749419654423,1.118,656.06,655.71,2.25235148]
[1749419654622,1.0582176,656.05,655.71,2.25235148]
[1749419654922,1.118,656.06,655.71,2.25235148]
[1749419655222,1.05822224,656.05,655.71,2.25235148]
[1749419655427,1.118,656.06,655.71,2.25235148]
[1749419655726,1.0582247,656.05,655.71,2.25235148]
[1749419655925,1.118,656.06,655.71,2.25235148]
[1749419656124,1.05822589,656.05,655.71,2.25235148]
[1749419656324,1.118,656.06,655.71,2.25235148]
[1749419656528,1.05822724,656.05,655.71,2.25235148]
[1749419656728,1.0582248,656.04,655.48,2.25235148]
[1749419656928,1.05824831,656.03,655.49,2.25235148]
[1749419657228,1.118,656.06,655.49,2.25235148]
[1749419657425,1.05824831,656.05,655.49,2.25235148]
[1749419657628,1.05824831,656.04,655.49,2.25235148]
[1749419657829,1.05824831,656.03,655.49,2.25235148]
[1749419658028,1.118,656.06,655.49,2.25235148]
[1749419658229,1.05822032,656.05,655.49,2.25235148]
[1749419658429,1.05822032,656.04,655.46,2.25235148]
[1749419658630,1.05822032,656.03,655.46,2.25235148]
[1749419658829,1.118,656.06,655.46,2.25235148]
[1749419659031,1.05822748,656.05,655.46,2.25235148]
[1749419659229,1.05822748,656.04,655.46,2.25235148]
[1749419659429,1.05822748,656.03,655.46,2.25235148]
[1749419659628,1.118,656.06,655.46,2.25235148]
[1749419659931,1.05822571,656.05,655.46,2.25235148]
[1749419660130,1.05822571,656.04,655.46,2.25235148]
[1749419660330,1.05822571,656.03,655.46,2.25235148]
[1749419660529,1.118,656.06,655.46,2.25235148]
[1749419660728,1.05820748,656.05,655.46,2.25235148]
[1749419660929,1.05820748,656.04,655.46,2.25235148]
[1749419661127,1.05820748,656.03,655.46,2.25235148]
[1749419661326,1.05820748,656.02,655.45,2.25235148]
[1749419661529,1.118,656.06,655.45,2.25235148]
[1749419661727,1.05819558,656.05,655.45,2.25235148]
[1749419661930,1.05819558,656.04,655.45,2.25235148]
[1749419662127,1.05819558,656.03,655.45,2.25235148]
[1749419662326,1.118,656.06,655.45,2.25235148]
[1749419662528,1.05819452,656.05,655.45,2.25235148]
[1749419662727,1.05819452,656.04,655.45,2.25235148]
[1749419662932,1.05819452,656.03,655.45,2.25235148]
[1749419663131,1.118,656.06,655.46,2.25235148]
[1749419663426,1.05819105,656.05,655.46,2.25235148]
[1749419663630,1.05819105,656.04,655.46,2.25235148]
[1749419663830,1.05819105,656.03,655.46,2.25235148]
[1749419664130,1.118,656.06,655.45,2.25235148]
[1749419664333,1.05821034,656.05,655.45,2.25235148]
[1749419664531,1.05821034,656.04,655.45,2.25235148]
[1749419664733,1.05821034,656.03,655.44,2.25235148]
[1749419664931,1.118,656.06,655.44,2.25235148]
[1749419664932,1.05821034,656.02,655.44,2.25235148]
[1749419665132,1.118,656.06,655.44,2.25235148]
[1749419665329,1.05822004,656.05,655.44,2.25235148]
[1749419665529,1.05822004,656.04,655.44,2.25235148]
[1749419665828,1.05822004,656.03,655.44,2.25235148]
[1749419666130,1.118,656.06,655.47,2.25235148]
[1749419666333,1.05827674,656.05,655.47,2.25235148]
[1749419666632,1.05827674,656.04,655.51,2.25235148]
[1749419666842,1.118,656.06,655.52,2.25235148]
[1749419667034,1.05828572,656.05,655.52,2.25235148]
[1749419667331,1.118,656.06,655.52,2.25235148]
[1749419667533,1.0582831,656.05,655.52,2.25235148]
[1749419667729,1.118,656.06,655.52,2.25235148]
[1749419667933,1.05824776,656.05,655.52,2.25235148]
[1749419668133,1.118,656.06,655.52,2.25235148]
[1749419668333,1.05824776,656.05,655.56,2.25235148]
[1749419668534,1.05826188,656.04,655.55,2.25235148]
[1749419668734,1.118,656.06,655.55,2.25235148]
[1749419669029,1.05824984,656.05,655.53,2.25235148]
[1749419669229,1.05824984,656.04,655.53,2.25235148]
[1749419669434,1.05824984,656.03,655.53,2.25235148]
[1749419669635,0.26533187,656.07,655.53,2.25235148]
[1749419669835,1.05821753,656.06,655.53,2.25235148]
[1749419670035,1.05821753,656.05,655.53,2.25235148]
[1749419670235,1.05821753,656.04,655.53,2.25235148]
[1749419670534,0.26533187,656.07,655.53,2.25235148]
[1749419670535,1.05821753,656.03,655.53,2.25235148]
[1749419670731,0.26533187,656.07,655.52,2.25235148]
[1749419671036,1.05795182,656.06,655.52,2.25235148]
[1749419671335,1.05795182,656.05,655.52,2.25235148]
[1749419671535,1.05795182,656.04,655.52,2.25235148]
[1749419671732,1.05795182,656.03,655.52,2.25235148]
[1749419671935,0.26533187,656.07,655.52,2.25235148]
[1749419672236,1.05829834,656.06,655.52,2.25235148]
[1749419672431,0.26533187,656.07,655.52,2.25235148]
[1749419672432,1.05829834,656.05,655.52,2.25235148]
[1749419672634,1.05829834,656.04,655.52,2.25235148]
[1749419672836,1.05829834,656.03,655.52,2.25235148]
[1749419673036,0.26533187,656.07,655.52,2.25235148]
[1749419673239,1.05825482,656.06,655.52,2.25235148]
[1749419673436,1.05825482,656.05,655.52,2.25235148]
[1749419673638,1.05825482,656.04,655.52,2.25235148]
[1749419673837,1.05825482,656.03,655.52,2.25235148]
[1749419674136,1.069,656.06,655.52,2.25235148]
[1749419674334,1.0582159,656.05,655.52,2.25235148]
[1749419674635,1.0582159,656.04,655.52,2.25235148]
[1749419674835,1.0582159,656.03,655.52,2.25235148]
[1749419675033,1.069,656.06,655.54,2.25235148]
[1749419675238,1.05818467,656.05,655.54,2.25235148]
[1749419675534,1.05818467,656.04,655.55,2.25235148]
[1749419675837,1.069,656.06,655.56,2.25235148]
[1749419676137,1.05815354,656.05,655.58,2.25235148]
[1749419676338,1.069,656.06,655.23,0.30523632]
[1749419676339,1.05815354,656.04,655.56,2.25235148]
[1749419676538,1.05815388,656.03,655.64,2.25235148]
[1749419676734,1.069,656.06,655.64,2.25235148]
[1749419676939,1.05812751,656.05,655.64,2.25235148]
[1749419677135,1.05812751,656.04,655.64,2.25235148]
[1749419677337,1.069,656.06,655.64,2.25235148]
[1749419677535,1.05701333,656.05,655.64,2.25235148]
[1749419677736,1.05701333,656.04,655.64,2.25235148]
[1749419678038,1.069,656.06,655.64,2.25235148]
[1749419678236,1.05700723,656.05,655.64,2.25235148]
[1749419678439,1.05700723,656.04,655.64,2.25235148]
[1749419678636,1.069,656.06,655.64,2.25235148]
[1749419678836,1.05698508,656.05,655.66,2.25235148]
[1749419679041,1.05698508,656.04,655.66,2.25235148]
[1749419679238,1.069,656.06,655.66,2.25235148]
[1749419679442,1.05698508,656.05,655.66,2.25235148]
[1749419679638,1.05698508,656.04,655.66,2.25235148]
[1749419679839,1.069,656.06,655.66,2.25235148]
[1749419680043,1.05696408,656.05,655.65,2.25235148]
[1749419680342,1.05696408,656.04,655.63,2.25235148]
[1749419680538,1.05696408,656.03,655.63,2.25235148]
[1749419680743,1.069,656.06,655.63,2.25235148]
[1749419681039,1.06397942,656.05,655.63,2.25235148]
[1749419681342,1.06397942,656.04,655.63,2.25235148]
[1749419681642,1.06397942,656.03,655.63,2.25235148]
[1749419681839,1.069,656.06,655.63,2.25235148]
[1749419682039,1.06396042,656.05,655.63,2.25235148]
[1749419682342,1.06396042,656.04,655.63,2.25235148]
[1749419682642,1.06396042,656.03,655.63,2.25235148]
[1749419682839,1.069,656.06,655.63,2.25235148]
[1749419683041,1.06441935,656.05,655.63,2.25235148]
[1749419683241,1.06441935,656.04,655.62,2.25235148]
[1749419683442,1.06441935,656.03,655.62,2.25235148]
[1749419683643,1.069,656.06,655.62,2.25235148]
[1749419683841,1.06460567,656.05,655.62,2.25235148]
[1749419684039,1.06460567,656.04,655.62,2.25235148]
[1749419684343,1.06460567,656.03,655.62,2.25235148]
[1749419684540,1.069,656.06,655.62,2.25235148]
[1749419684744,1.06459449,656.05,655.62,2.25235148]
[1749419684943,1.06459449,656.04,655.62,2.25235148]
[1749419685142,1.06459449,656.03,655.62,2.25235148]
[1749419685344,1.069,656.06,655.63,2.25235148]
[1749419685539,1.0645214,656.05,655.65,2.25235148]
[1749419685752,1.0645214,656.04,655.65,2.25235148]
[1749419685943,1.0645214,656.03,655.64,2.25235148]
[1749419686144,1.069,656.06,655.64,2.25235148]
[1749419686349,1.06451135,656.05,655.64,2.25235148]
[1749419686545,1.06451135,656.04,655.64,2.25235148]
[1749419686747,1.06451135,656.03,655.64,2.25235148]
[1749419686947,1.069,656.06,655.64,2.25235148]
[1749419687150,1.06450281,656.05,655.64,2.25235148]
[1749419687349,1.06450281,656.04,655.64,2.25235148]
[1749419687545,1.06450281,656.03,655.64,2.25235148]
[1749419687846,1.069,656.06,655.64,2.25235148]
[1749419688049,1.06449729,656.05,655.64,2.25235148]
[1749419688248,1.06449729,656.04,655.64,2.25235148]
[1749419688448,1.06449729,656.03,655.64,2.25235148]
[1749419688651,1.069,656.06,655.64,2.25235148]
[1749419688850,1.06443777,656.05,655.64,2.25235148]
[1749419689048,1.06443777,656.04,655.64,2.25235148]
[1749419689250,1.06443777,656.03,655.64,2.25235148]
[1749419689449,1.069,656.06,655.64,2.25235148]
[1749419689648,1.06443777,656.05,655.64,2.25235148]
[1749419689848,1.06443777,656.04,655.64,2.25235148]
[1749419690049,1.06443777,656.03,655.64,2.25235148]
[1749419690348,1.069,656.06,655.65,2.25235148]
[1749419690549,1.06364782,656.05,655.65,2.25235148]
[1749419690754,1.06364782,656.04,655.65,2.25235148]
[1749419691048,1.06364782,656.03,655.65,2.25235148]
[1749419691253,1.069,656.06,655.65,2.25235148]
[1749419691450,1.06324212,656.05,655.65,2.25235148]
[1749419691651,1.06324212,656.04,655.65,2.25235148]
[1749419691849,1.06324212,656.03,655.65,2.25235148]
[1749419692049,1.069,656.06,655.65,2.25235148]
[1749419692250,1.06323887,656.05,655.65,2.25235148]
[1749419692452,1.06323887,656.04,655.65,2.25235148]
[1749419692649,1.06323887,656.03,655.65,2.25235148]
[1749419692850,1.069,656.06,655.65,2.25235148]
[1749419693049,1.06323198,656.05,655.65,2.25235148]
[1749419693250,1.06323198,656.04,655.65,2.25235148]
[1749419693448,1.06323198,656.03,655.65,2.25235148]
[1749419693653,0.26533187,656.07,655.65,2.25235148]
[1749419693850,1.0633379,656.06,655.65,2.25235148]
[1749419694055,1.0633379,656.05,655.65,2.25235148]
[1749419694253,0.26533187,656.07,655.65,2.25235148]
[1749419694254,1.0633379,656.04,655.65,2.25235148]
[1749419694554,1.0633379,656.03,655.65,2.25235148]
[1749419694755,1.0633379,656.02,655.65,2.25235148]
[1749419694954,0.26533187,656.07,655.65,2.25235148]
[1749419695155,1.06333708,656.06,655.65,2.25235148]
[1749419695455,1.06333708,656.05,655.64,2.25235148]
[1749419695651,1.06333708,656.04,655.64,2.25235148]
[1749419695853,1.06333708,656.03,655.64,2.25235148]
[1749419696057,1.06333708,656.02,655.64,2.25235148]
[1749419696256,0.986,656.02,655.64,2.25235148]
[1749419700254,0.986,656.02,655.62,2.25235148]
[1749419700555,1.06283368,656.01,655.62,2.25235148]
[1749419700758,0.986,656.02,655.62,2.25235148]
[1749419700952,1.06321735,656.01,655.62,2.25235148]
[1749419701155,0.986,656.02,655.62,2.25235148]
[1749419701358,1.06321735,656.01,655.62,2.25235148]
[1749419701654,0.986,656.02,655.62,2.25235148]
[1749419701855,1.0632174,656.01,655.61,2.25235148]
[1749419702058,0.986,656.02,655.61,2.25235148]
[1749419702356,1.06319774,656.01,655.62,2.25235148]
[1749419702554,0.986,656.02,655.62,2.25235148]
[1749419703459,1.06318,656.01,655.6,2.25235148]
[1749419703756,0.986,656.02,655.6,2.25235148]
[1749419703956,1.06314464,656.01,655.6,2.25235148]
[1749419704159,0.986,656.02,655.6,2.25235148]
[1749419704356,0.986,656.02,655.61,2.25235148]
[1749419705362,0.986,656.02,655.62,2.25235148]
[1749419706063,0.986,656.02,655.59,2.25235148]
[1749419706261,1.06280648,656.01,655.59,2.25235148]
[1749419706462,0.986,656.02,655.59,2.25235148]
[1749419706762,1.06280648,656.01,655.59,2.25235148]
[1749419706963,0.986,656.02,655.59,2.25235148]
[1749419707160,1.06281699,656.01,655.59,2.25235148]
[1749419707359,0.986,656.02,655.59,2.25235148]
[1749419707558,1.06281567,656.01,655.59,2.25235148]
[1749419707762,0.986,656.02,655.59,2.25235148]
[1749419707959,1.06280834,656.01,655.59,2.25235148]
[1749419708163,0.986,656.02,655.58,2.25235148]
[1749419708365,1.06281105,656.01,655.58,2.25235148]
[1749419708564,0.986,656.02,655.58,2.25235148]
[1749419708860,1.06280373,656.01,655.58,2.25235148]
[1749419709065,0.986,656.02,655.58,2.25235148]
[1749419709262,1.06176108,656.01,655.58,2.25235148]
[1749419709465,0.986,656.02,655.58,2.25235148]
[1749419709663,1.06176108,656.01,655.58,2.25235148]
[1749419709863,0.986,656.02,655.53,2.25235148]
[1749419710063,1.06175499,656.01,655.54,2.25235148]
[1749419710268,0.986,656.02,655.54,2.25235148]
[1749419710468,1.06175499,656.01,655.54,2.25235148]
[1749419710669,0.986,656.02,655.54,2.25235148]
[1749419710969,1.06175346,656.01,655.54,2.25235148]
[1749419711171,0.986,656.02,655.54,2.25235148]
[1749419711365,1.06175346,656.01,655.54,2.25235148]
[1749419711565,0.986,656.02,655.54,2.25235148]
[1749419711771,1.06175218,656.01,655.54,2.25235148]
[1749419711970,0.986,656.02,655.54,2.25235148]
[1749419712166,1.06164257,656.01,655.54,2.25235148]
[1749419712372,0.986,656.02,655.54,2.25235148]
[1749419712572,1.06164257,656.01,655.54,2.25235148]
[1749419712772,0.986,656.02,655.54,2.25235148]
[1749419712972,1.06164302,656.01,655.54,2.25235148]
[1749419713271,0.986,656.02,655.23,0.30523632]
[1749419713272,0.986,656.02,655.55,2.25235148]
[1749419713466,1.0617161,656.01,655.55,2.25235148]
[1749419713673,0.986,656.02,655.55,2.25235148]
[1749419713875,1.06171833,656.01,655.55,2.25235148]
[1749419714073,0.986,656.02,655.55,2.25235148]
[1749419714269,1.06144431,656.01,655.55,2.25235148]
[1749419714469,0.986,656.02,655.55,2.25235148]
[1749419714772,1.06144431,656.01,655.55,2.25235148]
[1749419714969,0.986,656.02,655.55,2.25235148]
[1749419715173,1.06128388,656.01,655.55,2.25235148]
[1749419715373,0.986,656.02,655.55,2.25235148]
[1749419715571,1.06128388,656.01,655.55,2.25235148]
[1749419715773,0.986,656.02,655.55,2.25235148]
[1749419715976,1.06129059,656.01,655.57,2.25235148]
[1749419716176,0.986,656.02,655.56,2.25235148]
[1749419716377,0.986,656.02,655.23,0.30523632]
[1749419716378,0.986,656.02,655.58,2.25235148]
[1749419719780,0.986,656.02,655.64,2.25235148]
[1749419720684,0.986,656.02,655.65,2.25235148]
[1749419723887,0.986,656.02,655.61,2.25235148]
[1749419725587,1.06200562,656.01,655.61,2.25235148]
[1749419725788,0.986,656.02,655.61,2.25235148]
[1749419725987,1.06200571,656.01,655.61,2.25235148]
[1749419726189,1.06200571,656.0,655.6,2.25235148]
[1749419726386,0.986,656.02,655.6,2.25235148]
[1749419726587,1.0620057,656.01,655.6,2.25235148]
[1749419726788,1.0620057,656.0,655.6,2.25235148]
[1749419726989,0.986,656.02,655.6,2.25235148]
[1749419727193,1.06203163,656.01,655.6,2.25235148]
[1749419727488,1.06203163,656.0,655.6,2.25235148]
[1749419727692,0.986,656.02,655.6,2.25235148]
[1749419727893,1.06217237,656.01,655.6,2.25235148]
[1749419728093,1.06217237,656.0,655.6,2.25235148]
[1749419728295,0.26533187,656.07,655.6,2.25235148]
[1749419728503,1.06217373,656.06,655.6,2.25235148]
[1749419728690,1.06217373,656.05,655.6,2.25235148]
[1749419728895,1.06217373,656.04,655.6,2.25235148]
[1749419729093,1.06217373,656.03,655.6,2.25235148]
[1749419729393,1.06217373,656.02,655.6,2.25235148]
[1749419729589,1.06217373,656.01,655.6,2.25235148]
[1749419729790,1.06217373,656.0,655.6,2.25235148]
[1749419729990,0.26533187,656.07,655.6,2.25235148]
[1749419730194,1.06263044,656.06,655.6,2.25235148]
[1749419730394,0.26533187,656.07,655.6,2.25235148]
[1749419730395,1.06263044,656.05,655.6,2.25235148]
[1749419730591,1.06263044,656.04,655.6,2.25235148]
[1749419730791,1.06263044,656.03,655.6,2.25235148]
[1749419730996,1.06263044,656.02,655.6,2.25235148]
[1749419731291,1.06263044,656.01,655.6,2.25235148]
[1749419731495,1.95763044,656.0,655.6,2.25235148]
[1749419731696,0.895,656.0,655.6,2.25235148]
[1749419733593,0.895,656.0,655.23,0.30523632]
[1749419733594,1.06362713,655.99,655.58,2.25235148]
[1749419733796,0.895,656.0,655.61,2.25235148]
[1749419740904,0.895,656.0,655.23,0.30523632]
[1749419740905,1.06939922,655.99,655.23,0.30523632]
[1749419741108,0.895,656.0,655.23,0.30523632]
[1749419741304,1.06939922,655.99,655.23,0.30523632]
[1749419741506,0.895,656.0,655.23,0.30523632]
[1749419741711,1.06939922,655.99,655.23,0.30523632]
[1749419741910,0.895,656.0,655.23,0.30523632]
[1749419742211,1.06939264,655.99,655.23,0.30523632]
[1749419742409,1.06939264,655.98,655.23,0.30523632]
[1749419742711,0.895,656.0,655.23,0.30523632]
[1749419742912,1.06940352,655.99,655.23,0.30523632]
[1749419743212,1.06940352,655.98,655.23,0.30523632]
[1749419743407,0.895,656.0,655.23,0.30523632]
[1749419743608,1.06943871,655.99,655.23,0.30523632]
[1749419743811,0.895,656.0,655.23,0.30523632]
[1749419744011,1.06945268,655.99,655.23,0.30523632]
[1749419744307,1.06945268,655.98,655.23,0.30523632]
[1749419744510,0.895,656.0,655.23,0.30523632]
[1749419744707,1.07034149,655.99,655.23,0.30523632]
[1749419744911,1.07034149,655.98,655.23,0.30523632]
[1749419745206,0.895,656.0,655.23,0.30523632]
[1749419745411,1.06955918,655.99,655.23,0.30523632]
[1749419745611,1.06955918,655.98,655.23,0.30523632]
[1749419745812,0.895,656.0,655.23,0.30523632]
[1749419746107,1.06957422,655.99,655.23,0.30523632]
[1749419746313,0.895,656.0,655.23,0.30523632]
[1749419746612,1.06961078,655.99,655.23,0.30523632]
[1749419746809,0.895,656.0,655.23,0.30523632]
[1749419747112,1.06962585,655.99,655.59,2.28391719]
[1749419747312,0.895,656.0,655.59,2.28391719]
[1749419747510,1.06841943,655.99,655.59,2.28391719]
[1749419747711,0.895,656.0,655.59,2.28391719]
[1749419747908,1.06843793,655.99,655.59,2.28391719]
[1749419748108,0.895,656.0,655.59,2.28391719]
[1749419748308,1.06843793,655.99,655.59,2.28391719]
[1749419748513,0.895,656.0,655.59,2.28391719]
[1749419748812,1.06845642,655.99,655.59,2.28391719]
[1749419749013,0.895,656.0,655.59,2.28391719]
[1749419749312,1.06845751,655.99,655.59,2.28391719]
[1749419749509,0.895,656.0,655.59,2.28391719]
[1749419749713,1.06848211,655.99,655.59,2.28391719]
[1749419749912,0.895,656.0,655.59,2.28391719]
[1749419750111,1.06848211,655.99,655.59,2.28391719]
[1749419750311,0.895,656.0,655.59,2.28391719]
[1749419750609,1.06899395,655.99,655.58,2.28391719]
[1749419750912,0.895,656.0,655.58,2.28391719]
[1749419751111,1.06901963,655.99,655.58,2.28391719]
[1749419751310,0.895,656.0,655.58,2.28391719]
[1749419751614,1.06901932,655.99,655.58,2.28391719]
[1749419751809,0.26533187,656.07,655.58,2.28391719]
[1749419752011,1.06905055,656.06,655.64,2.28391719]
[1749419752214,1.06905055,656.05,655.64,2.28391719]
[1749419752515,1.06905055,656.04,655.64,2.28391719]
[1749419752812,1.06905055,656.03,655.64,2.28391719]
[1749419753111,1.06905055,656.02,655.65,2.28391719]
[1749419753310,1.06905055,656.01,655.65,2.28391719]
[1749419753510,1.06905055,656.0,655.62,2.28391719]
[1749419753714,1.06905055,655.99,655.63,2.28391719]
[1749419753915,0.26532176,655.93,655.63,2.28391719]
[1749419755113,0.26532176,655.93,655.6,2.28391719]
[1749419755312,1.137,655.92,655.6,2.28391719]
[1749419756415,1.137,655.92,655.61,2.28391719]
[1749419757015,1.137,655.92,655.6,2.28391719]
[1749419760024,1.137,655.92,655.61,2.28391719]
[1749419761925,1.137,655.92,655.62,2.28391719]
[1749419763426,1.137,655.92,655.63,2.28391719]
[1749419764825,1.137,655.92,655.66,2.28391719]
[1749419766329,1.137,655.92,655.65,2.28391719]
[1749419766930,1.137,655.92,655.66,2.28391719]
[1749419768929,1.137,655.92,655.62,2.28391719]
[1749419773628,1.137,655.92,655.61,2.28391719]
[1749419774530,1.137,655.92,655.62,2.28391719]
[1749419776133,0.2653339,655.85,655.62,2.28391719]
[1749419776329,0.2653339,655.85,655.61,2.28391719]
[1749419779832,0.2653339,655.85,655.65,2.28391719]
[1749419781533,0.2653339,655.85,655.66,2.28391719]
[1749419794339,1.002,655.84,655.66,2.28391719]
[1749419797238,1.002,655.84,655.3,2.28391719]
[1749419797744,1.002,655.84,655.31,2.28391719]
[1749419798739,1.002,655.84,655.32,2.28391719]
[1749419799643,1.002,655.84,655.38,2.28391719]
[1749419800139,1.002,655.84,655.23,0.30523632]
[1749419800140,1.002,655.84,655.37,2.28391719]
[1749419800943,1.002,655.84,655.38,2.28391719]
[1749419801645,1.002,655.84,655.37,2.28391719]
[1749419803743,1.002,655.84,655.38,2.28391719]
[1749419803944,1.002,655.84,655.44,2.28391719]
[1749419804648,1.002,655.84,655.43,2.28391719]
[1749419805446,1.002,655.84,655.23,0.30523632]
[1749419805447,1.002,655.84,655.24,2.28391719]
[1749419806851,1.002,655.84,655.25,2.28391719]
[1749419808450,1.002,655.84,655.23,0.30523632]
[1749419809753,1.002,655.84,655.18,2.28391719]
[1749419809754,1.06461141,655.83,654.96,2.28391719]
[1749419809954,1.06461141,655.82,654.96,2.28391719]
[1749419810157,1.06461141,655.83,655.09,2.28391719]
[1749419811057,1.06461141,655.82,654.8,0.26543914]
[1749419811351,2.06661141,655.84,654.81,0.30543211]
[1749419812054,1.06461141,655.83,654.81,0.30543211]
[1749419812251,1.002,655.84,654.81,0.30543211]
[1749419822059,2.06661141,655.84,654.81,0.30543211]
[1749419822362,1.002,655.84,654.81,0.30543211]
[1749419824962,1.06771837,655.83,654.81,0.30543211]
[1749419825663,1.06771837,655.82,654.81,0.30543211]
[1749419825863,1.002,655.84,654.81,0.30543211]
[1749419825864,1.06771837,655.83,654.81,0.30543211]
[1749419826265,1.002,655.84,654.81,0.30543211]
[1749419831265,1.06771837,655.83,654.81,0.30543211]
[1749419831563,1.06771837,655.82,654.81,0.30543211]
[1749419831761,1.06771837,655.81,654.81,0.30543211]
[1749419831967,1.06771837,655.8,654.81,0.30543211]
[1749419832266,1.06771837,655.79,654.81,0.30543211]
[1749419832464,1.06771837,655.78,654.81,0.30543211]
[1749419832661,1.06771837,655.83,654.81,0.30543211]
[1749419832864,1.06771837,655.82,654.81,0.30543211]
[1749419833167,1.06771837,655.81,654.81,0.30543211]
[1749419833364,1.06771837,655.8,654.81,0.30543211]
[1749419833564,1.06771837,655.79,654.81,0.30543211]
[1749419833765,1.06771837,655.83,654.81,0.30543211]
[1749419833963,1.06771837,655.82,654.81,0.30543211]
[1749419834167,1.06771837,655.81,654.81,0.30543211]
[1749419834367,1.06771837,655.8,654.81,0.30543211]
[1749419834564,1.06771837,655.83,654.81,0.30543211]
[1749419834768,1.06771837,655.82,654.81,0.30543211]
[1749419834965,1.06771837,655.81,654.81,0.30543211]
[1749419835165,1.06771837,655.8,654.81,0.30543211]
[1749419835364,1.06771837,655.83,654.81,0.30543211]
[1749419835567,1.06771837,655.82,654.81,0.30543211]
[1749419835766,1.06771837,655.81,654.81,0.30543211]
[1749419835965,1.06771837,655.8,654.81,0.30543211]
[1749419836267,1.06771837,655.79,654.81,0.30543211]
[1749419836466,1.06771837,655.78,654.81,0.30543211]
[1749419836769,1.06771837,655.77,654.81,0.30543211]
[1749419836969,1.06771837,655.76,654.81,0.30543211]
[1749419837265,1.06771837,655.75,654.81,0.30543211]
[1749419837470,1.06771837,655.74,654.81,0.30543211]
[1749419837670,1.06771837,655.73,654.81,0.30543211]
[1749419837867,1.06771837,655.72,654.81,0.30543211]
[1749419838068,1.06771837,655.71,654.81,0.30543211]
[1749419838366,1.06771837,655.7,654.81,0.30543211]
[1749419838570,1.06771837,655.69,654.81,0.30543211]
[1749419838771,1.06771837,655.68,654.81,0.30543211]